bitfinex-derivatives/quotes_BTCF0:USTF0_20250703
["timestamp","ask_amount","ask_price","bid_price","bid_amount"]
[1751563191294,0.005,109680.0,109670.0,2.52975162]
[1751563191786,0.005,109680.0,109670.0,2.77845162]
[1751563192094,0.187287,109680.0,109670.0,2.77845162]
[1751563193595,0.187287,109680.0,109670.0,1.81657162]
[1751563193896,0.187287,109680.0,109670.0,2.33421117]
[1751563194300,0.187287,109680.0,109670.0,2.3882156]
[1751563195895,0.187287,109680.0,109670.0,2.33421117]
[1751563196096,0.218887,109680.0,109670.0,2.33421117]
[1751563196395,0.005,109680.0,109670.0,2.70237605]
[1751563197095,0.005,109680.0,109670.0,2.64837162]
[1751563198893,0.005,109680.0,109670.0,2.33421117]
[1751563199888,0.005,109680.0,109670.0,1.50241117]
[1751563200197,0.187287,109680.0,109670.0,2.29936249]
[1751563200388,0.284187,109680.0,109670.0,2.29936249]
[1751563200690,0.284187,109680.0,109670.0,1.46756249]
[1751563200995,0.284187,109680.0,109670.0,2.27335954]
[1751563201291,0.0381,109680.0,109670.0,2.27335954]
[1751563201489,0.33282645,109710.0,109700.0,0.1822537]
[1751563201700,0.72662645,109710.0,109700.0,1.13854661]
[1751563201891,1.0407869,109710.0,109700.0,0.48868031]
[1751563202094,0.72662645,109710.0,109700.0,0.80284076]
[1751563202292,0.67192021,109710.0,109700.0,0.80284076]
[1751563203187,0.67192021,109710.0,109700.0,0.48868031]
[1751563203389,1.23608066,109710.0,109700.0,0.29]
[1751563203592,1.4730909,109710.0,109700.0,0.29]
[1751563203788,1.4790909,109710.0,109700.0,0.29]
[1751563204196,1.2290909,109710.0,109700.0,0.29]
[1751563204395,1.17438466,109710.0,109700.0,0.29]
[1751563205300,1.17938466,109710.0,109700.0,0.29]
[1751563206591,1.21208466,109710.0,109700.0,0.29]
[1751563206897,1.02978066,109710.0,109700.0,0.29]
[1751563211489,0.0911312,109700.0,109680.0,0.02714576]
[1751563211697,0.48540474,109700.0,109690.0,0.49643075]
[1751563211899,0.54950474,109700.0,109690.0,0.80643075]
[1751563212696,0.55250474,109700.0,109690.0,1.18643075]
[1751563212901,0.55250474,109700.0,109690.0,0.80643075]
[1751563213593,0.55850474,109700.0,109690.0,0.80643075]
[1751563213999,0.55850474,109700.0,109690.0,0.49643075]
[1751563218702,0.55850474,109700.0,109690.0,0.31416045]
[1751563220205,0.1822703,109690.0,109680.0,0.4150811]
[1751563220405,0.1822703,109690.0,109680.0,0.72924155]
[1751563223007,0.1852703,109690.0,109680.0,0.72924155]
[1751563223207,0.1882703,109690.0,109680.0,0.72924155]
[1751563224403,0.31589382,109690.0,109680.0,0.68367135]
[1751563227408,0.31589382,109690.0,109680.0,0.3695109]
[1751563227615,0.31589382,109690.0,109680.0,0.68367135]
[1751563230409,0.31589382,109690.0,109680.0,0.59253305]
[1751563230715,0.31589382,109690.0,109680.0,0.245487]
[1751563231309,0.31589382,109690.0,109680.0,0.55964745]
[1751563231813,0.31589382,109690.0,109680.0,0.85964745]
[1751563232916,0.31589382,109690.0,109680.0,1.19964745]
[1751563234320,0.26122188,109690.0,109680.0,1.22678602]
[1751563234720,0.26122188,109690.0,109680.0,1.19964745]
[1751563235518,0.26122188,109690.0,109680.0,0.85964745]
[1751563235719,0.26122188,109690.0,109680.0,0.89747279]
[1751563236022,0.29262188,109690.0,109680.0,0.88678602]
[1751563236224,0.32332188,109690.0,109680.0,0.88678602]
[1751563236620,0.32332188,109690.0,109680.0,0.85964745]
[1751563237122,0.64332188,109690.0,109680.0,0.3]
[1751563237327,0.1822869,109680.0,109670.0,0.08913857]
[1751563237518,0.1823035,109670.0,109660.0,0.05242648]
[1751563237821,0.1823035,109670.0,109660.0,0.32623213]
[1751563237822,1.80094395,109670.0,109660.0,0.32623213]
[1751563238621,1.85561589,109670.0,109660.0,0.28623213]
[1751563239328,1.86487254,109670.0,109660.0,0.28623213]
[1751563239627,0.1823202,109660.0,109650.0,0.42013731]
[1751563239827,0.5539202,109660.0,109650.0,0.30013731]
[1751563240228,0.2439202,109660.0,109650.0,0.30013731]
[1751563240530,0.2439202,109660.0,109650.0,0.48247411]
[1751563240725,0.2439202,109660.0,109650.0,0.33143731]
[1751563241127,0.2439202,109660.0,109650.0,0.64559776]
[1751563241325,0.2439202,109660.0,109650.0,0.64659776]
[1751563241632,0.2439202,109660.0,109650.0,0.33243731]
[1751563242026,0.2439202,109660.0,109650.0,0.33443731]
[1751563243032,0.5639202,109660.0,109650.0,0.33443731]
[1751563244229,0.5639202,109660.0,109650.0,0.51677411]
[1751563244632,0.5639202,109660.0,109650.0,0.33443731]
[1751563245633,0.2439202,109660.0,109650.0,0.33443731]
[1751563246728,1.11008065,109660.0,109650.0,0.30313731]
[1751563247531,1.11008065,109660.0,109650.0,0.27313731]
[1751563247728,1.29247265,109660.0,109650.0,0.27313731]
[1751563247926,1.29247265,109660.0,109650.0,0.00313731]
[1751563248134,1.29247265,109660.0,109650.0,0.05313731]
[1751563248732,1.29247265,109660.0,109650.0,0.00313731]
[1751563248933,1.29247265,109660.0,109650.0,0.29313731]
[1751563251036,1.11008065,109660.0,109650.0,0.29313731]
[1751563251236,1.29247265,109660.0,109650.0,0.29313731]
[1751563252134,1.29247265,109660.0,109650.0,0.06313731]
[1751563252442,1.29247265,109660.0,109650.0,0.32313731]
[1751563252740,1.11008065,109660.0,109650.0,0.32313731]
[1751563253431,1.11008065,109660.0,109650.0,0.06313731]
[1751563263246,1.16475259,109660.0,109650.0,0.06313731]
[1751563265246,1.11008065,109660.0,109650.0,0.06313731]
[1751563266349,1.1830304,109660.0,109650.0,0.06313731]
[1751563271750,1.49795195,109660.0,109650.0,0.06313731]
[1751563278651,2.13156095,109660.0,109630.0,0.03392423]
[1751563278853,0.86615156,109640.0,109630.0,0.37502423]
[1751563279061,1.18615156,109640.0,109630.0,0.03292423]
[1751563279261,1.24935156,109640.0,109630.0,0.03292423]
[1751563279755,0.9349331,109640.0,109630.0,0.03892423]
[1751563281357,0.9349331,109640.0,109630.0,0.00782423]
[1751563282058,0.9349331,109640.0,109630.0,0.01082423]
[1751563283459,1.9990531,109640.0,109630.0,0.01082423]
[1751563285357,0.18237,109630.0,109620.0,0.0935]
[1751563285558,0.81703354,109630.0,109620.0,0.3835]
[1751563286259,0.81403354,109630.0,109620.0,0.3835]
[1751563286963,0.81403354,109630.0,109620.0,0.3905]
[1751563287151,0.81403354,109630.0,109620.0,0.3945]
[1751563287353,0.84683354,109630.0,109620.0,0.3945]
[1751563287551,0.84683354,109630.0,109620.0,0.1045]
[1751563288261,0.84683354,109630.0,109620.0,0.011]
[1751563288456,0.0456044,109610.0,109600.0,0.0939]
[1751563288656,0.2280076,109610.0,109600.0,0.4433]
[1751563289457,0.2270076,109610.0,109600.0,0.4433]
[1751563289763,1.20497668,109610.0,109600.0,0.3112]
[1751563289966,0.1824197,109600.0,109590.0,0.0339249]
[1751563290166,1.64912324,109600.0,109590.0,0.0339249]
[1751563290459,1.52920354,109600.0,109580.0,0.01674677]
[1751563290665,0.49709984,109590.0,109580.0,0.32674677]
[1751563290861,0.84709984,109590.0,109580.0,0.32674677]
[1751563291159,0.49709984,109590.0,109580.0,0.32674677]
[1751563291463,0.49709984,109590.0,109580.0,0.34079649]
[1751563292258,0.49709984,109590.0,109580.0,0.32674677]
[1751563292463,0.49609984,109590.0,109580.0,0.34079071]
[1751563292961,1.0135563,109590.0,109580.0,0.83790695]
[1751563293161,1.0205563,109590.0,109580.0,0.68725425]
[1751563293361,1.0205563,109590.0,109580.0,0.86970695]
[1751563293565,1.0205563,109590.0,109580.0,0.68725425]
[1751563293566,1.0235563,109590.0,109580.0,0.68725425]
[1751563293865,1.0235563,109590.0,109580.0,0.58614341]
[1751563294367,1.0235563,109590.0,109580.0,0.5861327]
[1751563294759,0.1914363,109590.0,109580.0,0.90079624]
[1751563295064,0.1914363,109590.0,109580.0,1.27079624]
[1751563295469,0.1914363,109590.0,109580.0,0.9561327]
[1751563295765,0.1914363,109590.0,109580.0,1.27079117]
[1751563296156,0.1914363,109590.0,109580.0,0.90079117]
[1751563296655,0.1914363,109590.0,109580.0,0.88676301]
[1751563297162,0.1914363,109590.0,109580.0,0.38964677]
[1751563297360,0.1914363,109590.0,109580.0,0.88676301]
[1751563299174,0.50609984,109590.0,109580.0,0.38964677]
[1751563299468,0.87609984,109590.0,109580.0,0.38964677]
[1751563299671,0.91648352,109590.0,109580.0,0.38964677]
[1751563302372,0.23181998,109590.0,109580.0,0.42284677]
[1751563302569,0.86648352,109590.0,109580.0,0.42284677]
[1751563304069,0.86648352,109590.0,109580.0,0.36094677]
[1751563304269,0.89868352,109590.0,109580.0,0.36094677]
[1751563305378,0.89868352,109590.0,109580.0,0.32774677]
[1751563306074,0.89868352,109590.0,109580.0,0.35874677]
[1751563310672,1.73096352,109590.0,109580.0,0.01774677]
[1751563310871,1.73096352,109590.0,109580.0,0.08774677]
[1751563311071,1.95405984,109590.0,109580.0,0.01774677]
[1751563311274,1.95405984,109590.0,109580.0,0.28774677]
[1751563311779,1.95405984,109590.0,109580.0,0.3026]
[1751563313274,1.96308004,109590.0,109580.0,0.271]
[1751563317182,2.0177962,109590.0,109580.0,0.271]
[1751563317483,2.0177962,109590.0,109580.0,0.28512172]
[1751563317679,2.0177962,109590.0,109580.0,0.08512172]
[1751563318882,2.0177962,109590.0,109580.0,0.30512172]
[1751563319278,2.01779353,109590.0,109580.0,0.30512172]
[1751563319876,2.01779353,109590.0,109580.0,0.01512172]
[1751563320073,2.01779353,109590.0,109580.0,0.08512172]
[1751563320279,1.96308004,109590.0,109580.0,0.08512172]
[1751563321286,2.01779671,109590.0,109580.0,0.08512172]
[1751563322482,2.01779671,109590.0,109580.0,0.33512172]
[1751563323088,1.96308004,109590.0,109580.0,0.33512172]
[1751563323383,2.01779458,109590.0,109580.0,0.33512172]
[1751563324791,1.96308004,109590.0,109580.0,0.33512172]
[1751563326386,1.96308004,109590.0,109580.0,0.321]
[1751563327385,2.01779458,109590.0,109580.0,0.321]
[1751563331791,1.70313104,109590.0,109580.0,0.321]
[1751563331987,2.01779458,109590.0,109580.0,0.321]
[1751563336393,0.1824522,109580.0,109570.0,0.02775988]
[1751563336591,0.92931574,109580.0,109570.0,0.16775988]
[1751563336896,0.98403028,109580.0,109570.0,0.14054]
[1751563337492,0.98403028,109580.0,109570.0,0.00054]
[1751563337688,0.98503028,109580.0,109570.0,0.00154]
[1751563337888,0.98803028,109580.0,109570.0,0.00154]
[1751563338593,0.98803028,109580.0,109570.0,0.05154]
[1751563341097,0.58116674,109580.0,109570.0,0.05154]
[1751563341299,1.0186122,109580.0,109570.0,0.72120354]
[1751563341599,1.0186122,109580.0,109570.0,0.90367234]
[1751563344403,1.0186122,109580.0,109570.0,0.5890088]
[1751563344603,1.0508122,109580.0,109570.0,0.5890088]
[1751563345404,1.0508122,109580.0,109570.0,0.40654]
[1751563345606,1.0508122,109580.0,109570.0,0.5890088]
[1751563350015,1.36547574,109580.0,109570.0,0.5890088]
[1751563350415,1.0508122,109580.0,109570.0,0.5890088]
[1751563351516,1.0508122,109580.0,109570.0,0.5580088]
[1751563351715,1.1133122,109580.0,109570.0,0.5580088]
[1751563352020,1.4733122,109580.0,109570.0,0.5580088]
[1751563352415,1.78797574,109580.0,109570.0,0.5580088]
[1751563353222,1.78797574,109580.0,109570.0,0.37554]
[1751563353409,1.78797574,109580.0,109570.0,0.5580088]
[1751563353712,1.78797574,109580.0,109570.0,0.34434]
[1751563354016,1.78797574,109580.0,109570.0,0.31154]
[1751563354612,1.84269028,109580.0,109570.0,0.31154]
[1751563356310,0.1824688,109570.0,109560.0,0.05783708]
[1751563356517,0.88033234,109570.0,109560.0,0.37783708]
[1751563357015,0.88033234,109570.0,109560.0,0.3506]
[1751563357408,0.88033234,109570.0,109560.0,0.32]
[1751563358005,0.88033234,109570.0,109560.0,0.34823708]
[1751563358311,0.88133234,109570.0,109560.0,0.34823708]
[1751563361922,0.88133234,109570.0,109560.0,0.321]
[1751563362923,0.93604688,109570.0,109560.0,0.321]
[1751563364021,0.93704688,109570.0,109560.0,0.321]
[1751563364519,0.1814854,109560.0,109550.0,0.47906265]
[1751563364718,0.97184894,109560.0,109550.0,0.33906265]
[1751563364914,0.97184894,109560.0,109550.0,0.31182557]
[1751563365117,1.80380894,109560.0,109550.0,0.31182557]
[1751563365322,1.80380894,109560.0,109550.0,0.32539626]
[1751563365723,1.80480894,109560.0,109550.0,0.32639626]
[1751563366921,1.65684894,109560.0,109550.0,0.31282557]
[1751563367118,2.00684894,109560.0,109550.0,0.31282557]
[1751563367323,2.00684894,109560.0,109550.0,0.32636447]
[1751563367628,2.00684894,109560.0,109550.0,0.32638814]
[1751563367827,2.00984894,109560.0,109550.0,0.31282557]
[1751563368031,2.01284894,109560.0,109550.0,0.32638814]
[1751563370025,2.01284894,109560.0,109550.0,0.31282557]
[1751563370320,2.01284894,109560.0,109550.0,0.32642883]
[1751563370523,0.2841854,109560.0,109550.0,0.50893083]
[1751563370835,1.0204454,109560.0,109550.0,0.82359437]
[1751563371018,1.0204454,109560.0,109550.0,0.88599437]
[1751563371224,1.0204454,109560.0,109550.0,0.88592485]
[1751563371523,1.0506454,109560.0,109550.0,0.88592485]
[1751563372426,1.0506454,109560.0,109550.0,0.70342285]
[1751563372724,0.2186854,109560.0,109550.0,0.70342285]
[1751563372926,0.56604894,109560.0,109550.0,0.32635931]
[1751563373128,1.25071248,109560.0,109550.0,0.08635931]
[1751563373433,0.56604894,109560.0,109550.0,0.31635931]
[1751563373633,0.90604894,109560.0,109550.0,0.31635931]
[1751563373824,0.90604894,109560.0,109550.0,0.08635931]
[1751563374030,0.90604894,109560.0,109550.0,0.30635931]
[1751563374935,0.5913854,109560.0,109550.0,0.30635931]
[1751563375234,0.90604894,109560.0,109550.0,0.07635931]
[1751563375627,0.90604894,109560.0,109550.0,0.31635931]
[1751563375822,0.90604894,109560.0,109550.0,0.06649497]
[1751563376027,0.90604894,109560.0,109550.0,0.32649497]
[1751563376427,0.90604894,109560.0,109550.0,0.32649407]
[1751563378431,0.56604894,109560.0,109550.0,0.32649407]
[1751563378736,0.88604894,109560.0,109550.0,0.32649407]
[1751563378931,0.2513854,109560.0,109550.0,0.85425971]
[1751563379136,0.007,109560.0,109550.0,0.84059121]
[1751563379325,0.007,109560.0,109550.0,1.22059121]
[1751563379639,0.007,109560.0,109550.0,1.30929139]
[1751563380138,0.2280999,109570.0,109560.0,0.1824854]
[1751563380331,0.2280999,109570.0,109560.0,0.83084894]
[1751563380731,0.2280999,109570.0,109560.0,0.5161854]
[1751563380932,0.2280999,109570.0,109560.0,0.83084894]
[1751563381329,0.2320999,109570.0,109560.0,0.83184894]
[1751563382037,0.2360999,109570.0,109560.0,0.83284894]
[1751563382940,0.2360999,109570.0,109560.0,0.5181854]
[1751563383139,0.2360999,109570.0,109560.0,0.83284894]
[1751563390344,0.2360999,109570.0,109560.0,0.65036354]
[1751563390543,0.2360999,109570.0,109560.0,0.83284894]
[1751563390744,0.2661999,109570.0,109560.0,0.83284894]
[1751563391049,0.2661999,109570.0,109560.0,0.5181854]
[1751563392346,0.2661999,109570.0,109560.0,0.83284894]
[1751563394543,0.2661999,109570.0,109560.0,0.5181854]
[1751563394544,0.58086344,109570.0,109560.0,0.5181854]
[1751563394748,0.61326344,109570.0,109560.0,0.4850854]
[1751563394951,0.3292999,109570.0,109560.0,0.4850854]
[1751563395449,0.64396344,109570.0,109560.0,0.4850854]
[1751563396151,0.96396344,109570.0,109560.0,0.272]
[1751563399650,0.1824854,109560.0,109550.0,0.00182557]
[1751563399842,1.68062894,109560.0,109550.0,0.27182557]
[1751563400047,1.71252894,109560.0,109550.0,0.27182557]
[1751563400852,1.94648894,109560.0,109550.0,0.00182557]
[1751563401054,1.94848894,109560.0,109550.0,0.00282557]
[1751563401351,0.1825021,109550.0,109540.0,0.45652839]
[1751563401548,0.90316564,109550.0,109540.0,0.33652839]
[1751563402442,0.1825187,109540.0,109530.0,0.50722916]
[1751563402641,0.7518178,109540.0,109530.0,0.31]
[1751563402845,0.69648134,109540.0,109530.0,0.31]
[1751563404255,0.69748134,109540.0,109530.0,0.312]
[1751563404653,1.53028134,109540.0,109530.0,0.312]
[1751563405456,1.2156178,109540.0,109530.0,0.4945354]
[1751563405656,1.2156178,109540.0,109530.0,0.313]
[1751563406151,1.2156178,109540.0,109530.0,0.4955354]
[1751563406653,1.2156178,109540.0,109530.0,0.313]
[1751563407558,1.2156178,109540.0,109530.0,0.4955354]
[1751563408056,1.2156178,109540.0,109530.0,0.313]
[1751563408957,1.2156178,109540.0,109530.0,0.4955354]
[1751563410460,1.2156178,109540.0,109530.0,0.313]
[1751563410755,1.53028134,109540.0,109530.0,0.4955354]
[1751563411360,1.53028134,109540.0,109530.0,0.313]
[1751563413363,1.53028134,109540.0,109530.0,0.32668317]
[1751563413562,1.53028134,109540.0,109530.0,0.50921857]
[1751563414766,1.53028134,109540.0,109530.0,0.32668317]
[1751563416370,1.53028134,109540.0,109530.0,0.50921857]
[1751563418169,1.53028134,109540.0,109530.0,0.32668317]
[1751563419058,1.85028134,109540.0,109530.0,0.32668317]
[1751563424178,1.2156178,109540.0,109530.0,0.32668317]
[1751563424375,1.85028134,109540.0,109530.0,0.32668317]
[1751563424575,1.84028134,109540.0,109530.0,0.32668317]
[1751563425471,0.1825521,109520.0,109510.0,0.28723186]
[1751563425669,0.1825521,109520.0,109510.0,1.23739657]
[1751563425876,0.1825521,109520.0,109510.0,0.90739657]
[1751563426281,0.1825521,109520.0,109510.0,1.27739657]
[1751563426478,0.1825521,109520.0,109510.0,1.2866978]
[1751563427080,0.1825521,109520.0,109510.0,1.31389663]
[1751563427280,0.1835521,109520.0,109510.0,1.2886978]
[1751563427480,0.1835521,109520.0,109510.0,1.31589663]
[1751563427875,0.1835521,109520.0,109510.0,1.31689663]
[1751563428077,0.1835521,109520.0,109510.0,1.32695992]
[1751563428284,0.2597782,109530.0,109520.0,0.1825521]
[1751563428582,0.3054135,109530.0,109520.0,1.27424406]
[1751563429478,0.3054135,109530.0,109520.0,1.31043841]
[1751563430283,0.3074135,109530.0,109520.0,1.31143841]
[1751563430581,0.3074135,109530.0,109520.0,1.23143841]
[1751563430782,0.3084135,109530.0,109520.0,1.23143841]
[1751563431786,0.3084135,109530.0,109520.0,2.06359841]
[1751563432088,0.2768135,109530.0,109520.0,2.06359841]
[1751563432274,0.2768135,109530.0,109520.0,2.03633629]
[1751563434289,0.2768135,109530.0,109520.0,2.06362567]
[1751563434589,0.2768135,109530.0,109520.0,2.09034072]
[1751563434983,0.2768135,109530.0,109520.0,2.03633629]
[1751563435283,0.2768135,109530.0,109520.0,2.09034072]
[1751563435484,0.2768135,109530.0,109520.0,2.03633629]
[1751563436282,0.2768135,109530.0,109520.0,1.25818072]
[1751563436486,0.2768135,109530.0,109520.0,2.09034072]
[1751563436988,0.2768135,109530.0,109520.0,2.03633629]
[1751563437589,0.2768135,109530.0,109520.0,1.72167275]
[1751563437888,0.2768135,109530.0,109520.0,2.03633629]
[1751563441187,0.2768135,109530.0,109520.0,1.20417629]
[1751563441686,0.2768135,109530.0,109520.0,2.03629629]
[1751563442888,0.2768135,109530.0,109520.0,1.20417629]
[1751563443088,0.2768135,109530.0,109520.0,2.03629629]
[1751563443885,0.2768135,109530.0,109520.0,0.88951275]
[1751563444187,0.2768135,109530.0,109520.0,2.03629629]
[1751563444592,0.2768135,109530.0,109520.0,2.06358078]
[1751563449093,0.2737931,109540.0,109530.0,0.1825354]
[1751563449391,0.2737931,109540.0,109530.0,1.4174463]
[1751563449594,0.2737931,109540.0,109530.0,2.09210984]
[1751563449794,0.2737931,109540.0,109530.0,2.09210703]
[1751563450199,0.2737931,109540.0,109530.0,1.77744349]
[1751563450397,0.2737931,109540.0,109530.0,2.09210681]
[1751563450598,0.2767931,109540.0,109530.0,2.09310681]
[1751563450995,0.2787931,109540.0,109530.0,2.09310681]
[1751563451298,0.2331613,109540.0,109530.0,2.09310681]
[1751563451996,0.2331613,109540.0,109530.0,2.40777035]
[1751563452393,0.1875307,109540.0,109530.0,2.40777035]
[1751563452589,0.1875307,109540.0,109530.0,2.09310681]
[1751563453088,0.1875307,109540.0,109530.0,2.12310681]
[1751563453291,0.1875307,109540.0,109530.0,2.15930116]
[1751563453584,0.1875307,109540.0,109530.0,1.84463762]
[1751563453790,0.1875307,109540.0,109530.0,2.15930116]
[1751563454897,0.1875307,109540.0,109530.0,2.12930116]
[1751563456604,0.2195307,109540.0,109530.0,2.12930116]
[1751563457306,0.2195307,109540.0,109530.0,2.10201329]
[1751563457498,0.1875307,109540.0,109530.0,2.10201329]
[1751563457699,0.1875307,109540.0,109530.0,2.15601772]
[1751563460604,0.1875307,109540.0,109530.0,1.84187418]
[1751563460804,0.2194307,109540.0,109530.0,2.15653772]
[1751563461299,0.2194307,109540.0,109530.0,2.09103772]
[1751563461500,0.2822307,109540.0,109530.0,2.09103772]
[1751563462506,0.2822307,109540.0,109530.0,2.06103772]
[1751563462807,0.2822307,109540.0,109530.0,2.00703329]
[1751563463304,0.2822307,109540.0,109530.0,1.98707329]
[1751563463507,0.90689424,109540.0,109530.0,0.36446544]
[1751563463699,0.90689424,109540.0,109530.0,0.13446544]
[1751563464006,0.90689424,109540.0,109530.0,0.281]
[1751563470415,0.1825354,109530.0,109520.0,0.0967663]
[1751563470708,0.1825521,109520.0,109510.0,1.680232]
[1751563470911,0.2780521,109520.0,109510.0,2.20489554]
[1751563471107,0.2780521,109520.0,109510.0,2.19489554]
[1751563471513,0.2780521,109520.0,109510.0,2.15870119]
[1751563471811,0.2780521,109520.0,109510.0,1.81870119]
[1751563472114,0.2780521,109520.0,109510.0,1.34574119]
[1751563472314,0.2780521,109520.0,109510.0,2.16854119]
[1751563472611,0.2780521,109520.0,109510.0,2.14854119]
[1751563472811,0.2770521,109520.0,109510.0,2.14854119]
[1751563473015,0.2770521,109520.0,109510.0,1.81854119]
[1751563473208,0.2780521,109520.0,109510.0,2.16054119]
[1751563473407,0.2780521,109520.0,109510.0,0.98774119]
[1751563473613,0.2780521,109520.0,109510.0,1.88587765]
[1751563473815,0.2780521,109520.0,109510.0,2.20154119]
[1751563474010,0.2780521,109520.0,109510.0,1.88687765]
[1751563474210,0.2780521,109520.0,109510.0,2.20154119]
[1751563474614,0.2780521,109520.0,109510.0,2.23773554]
[1751563475016,0.2780521,109520.0,109510.0,1.37293382]
[1751563475215,0.2780521,109520.0,109510.0,1.68759736]
[1751563476412,0.2780521,109520.0,109510.0,1.68751736]
[1751563478118,0.2780521,109520.0,109510.0,1.66024627]
[1751563478417,0.2780521,109520.0,109510.0,1.68750697]
[1751563481318,0.2780521,109520.0,109510.0,0.85494697]
[1751563481617,0.2780521,109520.0,109510.0,2.00750697]
[1751563481817,0.2780521,109520.0,109510.0,1.68750697]
[1751563482918,0.2780521,109520.0,109510.0,1.99750697]
[1751563483421,0.2780521,109520.0,109510.0,1.68730697]
[1751563483915,0.2780521,109520.0,109510.0,0.85494697]
[1751563484124,0.59271564,109520.0,109510.0,0.32564319]
[1751563484316,0.96271564,109520.0,109510.0,0.32568788]
[1751563484521,0.96271564,109520.0,109510.0,0.29842718]
[1751563484821,0.59271564,109520.0,109510.0,0.29842718]
[1751563485023,0.97271564,109520.0,109510.0,0.29842718]
[1751563486430,0.59271564,109520.0,109510.0,0.29842718]
[1751563487228,0.59331729,109520.0,109510.0,0.29842718]
[1751563487728,0.60244401,109520.0,109510.0,0.29842718]
[1751563491333,0.60244401,109520.0,109510.0,0.28482623]
[1751563491833,0.1825684,109510.0,109500.0,0.0272607]
[1751563492031,0.1825851,109500.0,109490.0,0.05246428]
[1751563492230,1.48833548,109500.0,109490.0,0.29]
[1751563492526,1.48833548,109500.0,109480.0,0.44]
[1751563492527,0.0456519,109490.0,109480.0,0.09]
[1751563492732,0.74308039,109490.0,109480.0,0.3]
[1751563492932,0.74108039,109490.0,109480.0,0.3]
[1751563493426,0.73708039,109490.0,109480.0,0.3]
[1751563494033,0.73808039,109490.0,109480.0,0.4886185]
[1751563494426,0.3909152,109490.0,109480.0,0.80388369]
[1751563494625,0.3909152,109490.0,109480.0,0.86668369]
[1751563495027,0.3919152,109490.0,109480.0,0.87068369]
[1751563495536,0.3919152,109490.0,109480.0,0.87962627]
[1751563495736,0.46357736,109490.0,109480.0,0.87562627]
[1751563495936,0.46257736,109490.0,109480.0,0.87662627]
[1751563496633,0.38622326,109490.0,109480.0,1.18662627]
[1751563496936,0.25526396,109490.0,109480.0,1.26662627]
[1751563497124,0.25526396,109490.0,109480.0,1.25662627]
[1751563499240,0.25726396,109490.0,109480.0,1.25162627]
[1751563503239,0.25726396,109490.0,109480.0,2.08402627]
[1751563505932,0.25726396,109490.0,109480.0,2.16402627]
[1751563506443,0.07466216,109490.0,109480.0,2.16402627]
[1751563507443,0.25726466,109490.0,109480.0,2.16402627]
[1751563507843,0.07466216,109490.0,109480.0,2.16402627]
[1751563508248,0.07466216,109490.0,109480.0,2.20022062]
[1751563508450,0.25726466,109490.0,109480.0,2.20022062]
[1751563511550,0.07466216,109490.0,109480.0,2.20022062]
[1751563511850,0.25726466,109490.0,109480.0,2.20022062]
[1751563515851,0.25726466,109490.0,109480.0,1.88495543]
[1751563516055,0.25726466,109490.0,109480.0,2.20022062]
[1751563516352,0.25726466,109490.0,109480.0,2.25422505]
[1751563524553,0.0631,109500.0,109490.0,0.1826025]
[1751563524852,0.35045691,109510.0,109500.0,0.1825858]
[1751563525053,0.38235691,109510.0,109500.0,1.6849458]
[1751563525355,0.38235691,109510.0,109500.0,1.3349458]
[1751563526155,0.38235691,109510.0,109500.0,1.6649458]
[1751563526343,0.38235691,109510.0,109500.0,1.3349458]
[1751563526546,0.38935691,109510.0,109500.0,1.3349458]
[1751563526754,0.38935691,109510.0,109500.0,1.6449458]
[1751563526955,0.38935691,109510.0,109500.0,1.65021099]
[1751563527254,0.38935691,109510.0,109500.0,1.97021099]
[1751563529456,0.34371101,109510.0,109500.0,1.97021099]
[1751563529656,0.34371101,109510.0,109500.0,2.00640534]
[1751563531660,0.34371101,109510.0,109500.0,2.01640534]
[1751563531864,0.34371101,109510.0,109500.0,1.70640534]
[1751563532162,0.34371101,109510.0,109500.0,1.67021099]
[1751563532356,0.34371101,109510.0,109500.0,1.70640534]
[1751563532757,0.34371101,109510.0,109500.0,2.05640534]
[1751563533060,0.34371101,109510.0,109500.0,2.02021099]
[1751563533252,0.34571101,109510.0,109500.0,2.02021099]
[1751563533859,0.34571101,109510.0,109500.0,1.3349458]
[1751563534058,0.34571101,109510.0,109500.0,1.65021099]
[1751563536264,0.34571101,109510.0,109500.0,2.02021099]
[1751563538959,0.34571101,109510.0,109500.0,2.02009099]
[1751563543774,0.34571101,109510.0,109500.0,2.3353359]
[1751563548478,0.34571101,109510.0,109500.0,1.6453359]
[1751563552191,0.34571101,109510.0,109500.0,1.67266226]
[1751563552481,0.34571101,109510.0,109500.0,1.70446226]
[1751563554289,0.34571101,109510.0,109500.0,1.74085915]
[1751563556698,0.31381101,109510.0,109500.0,1.74085915]
[1751563556899,0.00913731,109510.0,109500.0,2.0865942]
[1751563557201,0.36114952,109530.0,109520.0,0.1825524]
[1751563557504,0.36114952,109530.0,109520.0,1.6451825]
[1751563557697,0.3064185,109530.0,109520.0,1.73510981]
[1751563558496,0.3064185,109530.0,109520.0,1.73610981]
[1751563558796,0.3154185,109530.0,109520.0,1.73610981]
[1751563559197,0.3154185,109530.0,109520.0,1.7087825]
[1751563559390,0.3194185,109530.0,109520.0,1.7097825]
[1751563560602,0.3194185,109530.0,109520.0,1.71873991]
[1751563563695,0.3194185,109530.0,109520.0,1.68813991]
[1751563563900,0.66647355,109530.0,109520.0,1.36392745]
[1751563564704,0.66647355,109530.0,109520.0,0.002]
[1751563564999,0.9817286,109530.0,109520.0,0.002]
[1751563565207,1.03645962,109530.0,109520.0,0.002]
[1751563565706,1.86845962,109530.0,109520.0,0.002]
[1751563566400,0.1825691,109510.0,109500.0,0.02732731]
[1751563566597,0.1825858,109500.0,109490.0,0.36918873]
[1751563566801,0.59394085,109500.0,109490.0,1.48905943]
[1751563567200,0.2786858,109500.0,109490.0,1.48905943]
[1751563567400,0.2786858,109500.0,109490.0,0.65705943]
[1751563567602,0.2786858,109500.0,109490.0,1.48905943]
[1751563567802,0.2786858,109500.0,109490.0,1.489136]
[1751563568200,0.2796858,109500.0,109490.0,1.491136]
[1751563572410,0.2796858,109500.0,109490.0,1.17580438]
[1751563572606,0.2796858,109500.0,109490.0,1.491136]
[1751563574803,0.2796858,109500.0,109490.0,1.52757241]
[1751563577209,0.2796858,109500.0,109490.0,0.38024079]
[1751563577409,0.2796858,109500.0,109490.0,1.52761241]
[1751563577913,0.2796858,109500.0,109490.0,1.21228079]
[1751563578103,0.2796858,109500.0,109490.0,1.52761241]
[1751563581111,0.2796858,109500.0,109490.0,2.15761241]
[1751563582213,0.2796858,109500.0,109490.0,2.1302851]
[1751563582409,0.2796858,109500.0,109490.0,2.09384869]
[1751563583115,0.1835858,109500.0,109490.0,2.09384869]
[1751563583310,0.001,109500.0,109490.0,2.23584869]
[1751563583615,0.1835858,109500.0,109490.0,2.23584869]
[1751563584009,0.1835858,109500.0,109490.0,2.27226537]
[1751563584309,0.001,109500.0,109490.0,2.27226537]
[1751563584511,0.1835858,109500.0,109490.0,2.27226537]
[1751563584711,0.1835858,109500.0,109490.0,2.26316181]
[1751563593818,0.1835858,109500.0,109490.0,2.57839779]